bitfinex/quotes_SOLUSD_20241022
["timestamp","ask_amount","ask_price","bid_price","bid_amount"]
[1729618418741,5.9834,167.13,167.03,23.776884]
[1729618419335,5.9836,167.13,167.03,23.776884]
[1729618419940,15.5847,167.12,167.03,23.776884]
[1729618420134,5.9854,167.08,167.01,6.21311159]
[1729618420348,5.9854,167.08,166.96,39.12214517]
[1729618420643,5.9854,167.08,166.97,6.21326535]
[1729618421948,5.9854,167.08,166.98,23.776884]
[1729618423721,5.9841,167.11,167.01,23.776884]
[1729618424636,15.5847,167.12,167.01,23.776884]
[1729618424838,5.984,167.11,167.01,23.776884]
[1729618426743,5.9845,167.1,167.01,23.776884]
[1729618427442,5.9848,167.09,166.98,24.41932948]
[1729618427652,5.9848,167.09,166.98,7.24548431]
[1729618427829,23.776884,167.11,166.98,7.24548431]
[1729618428029,5.9852,167.08,166.98,7.24548431]
[1729618428225,23.776884,167.11,166.98,7.24548431]
[1729618428643,5.9854,167.08,166.97,20.0]
[1729618428942,5.9855,167.07,166.97,20.0]
[1729618429738,21.2769,167.1,166.97,20.0]
[1729618429928,5.9857,167.07,166.97,20.0]
[1729618432856,5.9852,167.08,166.98,23.776884]
[1729618435727,21.2769,167.1,167.0,17.17384517]
[1729618435934,15.0868,167.1,167.01,23.776884]
[1729618436430,21.0712,167.1,167.01,23.776884]
[1729618436841,15.0868,167.1,166.99,23.776884]
[1729618437044,5.9852,167.08,166.97,41.708]
[1729618437252,23.776884,167.09,166.97,41.708]
[1729618437463,5.9859,167.06,166.97,41.708]
[1729618440434,5.9866,167.04,166.96,6.22954819]
[1729618440635,15.2745,167.04,166.96,6.22954819]
[1729618440947,15.2745,167.04,166.94,0.625218]
[1729618441340,5.9887,166.99,166.94,0.625218]
[1729618442341,6.5928,167.01,166.94,0.625218]
[1729618442545,5.9894,166.96,166.94,0.625218]
[1729618442748,22.0538,166.95,166.94,0.625218]
[1729618443553,45.830684,166.95,166.94,0.625218]
[1729618446859,65.830684,166.95,166.94,0.625218]
[1729618447163,65.830684,166.95,166.85,6.2409436]
[1729618447164,5.9913,166.91,166.85,6.2409436]
[1729618448037,43.876884,166.93,166.85,6.2409436]
[1729618448360,5.9933,166.86,166.78,0.625218]
[1729618448550,5.9927,166.87,166.78,0.625218]
[1729618449245,16.5922,166.91,166.78,17.79906317]
[1729618449561,16.5922,166.91,166.81,23.776884]
[1729618450075,22.5835,166.91,166.81,23.776884]
[1729618450767,26.5254,166.9,166.78,0.625218]
[1729618451143,23.776884,166.86,166.78,0.625218]
[1729618451459,5.9938,166.84,166.78,0.625218]
[1729618452463,23.776884,166.86,166.78,0.625218]
[1729618452763,23.776884,166.89,166.78,0.625218]
[1729618452965,25.9926,166.88,166.78,0.625218]
[1729618453141,20.0,166.88,166.78,0.625218]
[1729618453347,5.9929,166.87,166.78,0.625218]
[1729618453578,5.9926,166.87,166.78,0.625218]
[1729618454066,16.5922,166.91,166.79,23.776884]
[1729618454263,22.5837,166.91,166.79,23.776884]
[1729618454656,5.9916,166.9,166.79,23.776884]
[1729618455247,6.3374,166.94,166.81,23.776884]
[1729618455449,5.9912,166.91,166.81,23.776884]
[1729618457766,5.9917,166.9,166.81,23.776884]
[1729618457971,23.776884,166.93,166.81,23.776884]
[1729618458160,5.9926,166.88,166.8,23.776884]
[1729618458351,43.776884,166.91,166.78,17.79906317]
[1729618458553,5.9926,166.88,166.79,23.776884]
[1729618461346,5.9919,166.9,166.79,23.776884]
[1729618461557,6.3374,166.94,166.8,17.17384517]
[1729618461774,5.9913,166.91,166.81,23.776884]
[1729618461975,6.3374,166.94,166.81,23.776884]
[1729618462156,5.9906,166.93,166.83,23.776884]
[1729618462564,15.3254,166.95,166.83,23.776884]
[1729618462768,5.9906,166.93,166.83,23.776884]
[1729618462980,15.3254,166.95,166.86,23.776884]
[1729618463164,5.9891,166.97,166.86,40.95072917]
[1729618463468,5.9889,166.98,166.86,40.95072917]
[1729618464049,15.6198,166.99,166.86,40.95072917]
[1729618464050,15.6198,166.99,166.89,23.776884]
[1729618464380,15.6198,166.99,166.91,23.776884]
[1729618464552,19.47212526,167.03,166.91,23.776884]
[1729618464553,28.52332526,167.03,166.93,23.776884]
[1729618464750,34.51042526,167.03,166.93,23.776884]
[1729618464946,21.5656,167.03,166.93,23.776884]
[1729618465150,21.5656,167.03,166.94,6.4723]
[1729618465982,5.9873,167.02,166.94,6.4723]
[1729618467090,5.988,167.0,166.93,23.776884]
[1729618467785,5.9886,166.99,166.93,23.776884]
[1729618467959,5.9884,166.99,166.91,15.3055]
[1729618468357,5.9884,166.99,166.9,6.4752]
[1729618468589,5.9884,166.99,166.91,23.776884]
[1729618468780,5.988,167.0,166.91,23.776884]
[1729618469355,15.5785,167.03,166.93,23.776884]
[1729618469686,15.5785,167.03,166.95,23.776884]
[1729618469981,15.5785,167.03,166.93,23.776884]
[1729618469982,5.9879,167.01,166.93,23.776884]
[1729618470358,5.9873,167.02,166.93,23.776884]
[1729618472461,21.5655,167.03,166.93,23.776884]
[1729618472764,5.9862,167.05,166.95,23.776884]
[1729618473175,5.9866,167.04,166.95,23.776884]
[1729618473586,5.9873,167.02,166.93,43.776884]
[1729618475878,43.776884,167.04,166.9,6.4752]
[1729618476188,24.4891,167.0,166.86,6.6169]
[1729618476380,20.0,166.97,166.86,6.6169]
[1729618476564,34.9727,166.97,166.83,22.0267]
[1729618476770,5.9907,166.93,166.83,22.0267]
[1729618476966,5.9902,166.94,166.83,22.0267]
[1729618477563,5.9909,166.92,166.83,22.0267]
[1729618477792,5.9916,166.9,166.83,6.6169]
[1729618479991,6.195,166.92,166.79,12.75998369]
[1729618480285,6.195,166.92,166.78,0.625218]
[1729618480286,5.9937,166.84,166.78,0.625218]
[1729618480462,43.876884,166.91,166.78,0.625218]
[1729618480663,5.9944,166.83,166.78,0.625218]
[1729618481395,43.876884,166.91,166.78,0.625218]
[1729618481396,16.6297,166.84,166.78,0.625218]
[1729618481882,5.9951,166.81,166.78,0.625218]
[1729618482462,5.9942,166.83,166.78,0.625218]
[1729618482685,16.6297,166.84,166.78,0.625218]
[1729618482989,5.9948,166.81,166.78,0.625218]
[1729618483595,5.9952,166.8,166.78,0.625218]
[1729618484671,5.9947,166.82,166.78,0.625218]
[1729618484870,5.9948,166.81,166.78,0.625218]
[1729618489271,6.2395,166.82,166.78,0.625218]
[1729618489595,5.9955,166.79,166.78,0.625218]
[1729618499779,5.9949,166.81,166.78,0.625218]
[1729618500094,5.9945,166.82,166.78,0.625218]
[1729618500473,5.9955,166.8,166.78,0.625218]
[1729618501576,5.9955,166.79,166.78,0.625218]
[1729618501772,16.6297,166.84,166.78,0.625218]
[1729618502219,5.9944,166.83,166.78,0.625218]
[1729618502505,5.9945,166.82,166.78,0.625218]
[1729618502889,16.6297,166.84,166.78,0.625218]
[1729618503380,5.9941,166.83,166.78,0.625218]
[1729618504196,20.0,166.87,166.78,0.625218]
[1729618504491,5.9933,166.86,166.78,0.625218]
[1729618504694,5.9935,166.85,166.78,0.625218]
[1729618505072,5.9926,166.87,166.78,6.701018]
[1729618505902,12.50699735,166.9,166.79,23.776884]
[1729618506078,12.50699735,166.9,166.8,20.0]
[1729618506285,12.50699735,166.9,166.81,23.776884]
[1729618506883,5.9919,166.89,166.79,20.0]
[1729618507097,5.9919,166.89,166.8,23.776884]
[1729618507316,12.50699735,166.9,166.79,23.776884]
[1729618507612,5.9927,166.87,166.78,6.701018]
[1729618508606,5.9923,166.88,166.78,6.701018]
[1729618508803,12.50699735,166.9,166.79,23.776884]
[1729618509188,12.50699735,166.9,166.79,41.0260134]
[1729618509405,22.6192,166.96,166.82,23.776884]
[1729618509598,22.6192,166.96,166.78,76.701018]
[1729618509599,22.203,166.96,166.84,23.776884]
[1729618509796,5.9898,166.95,166.84,23.776884]
[1729618510103,5.9898,166.95,166.85,6.528]
[1729618510793,16.2136,166.96,166.86,23.776884]
[1729618510991,21.4067,167.0,166.87,20.0]
[1729618511216,21.558,167.04,166.89,17.2491294]
[1729618511400,5.989,166.98,166.87,23.776884]
[1729618511906,5.9894,166.96,166.87,23.776884]
[1729618512103,5.9895,166.96,166.86,23.776884]
[1729618512317,14.9691,167.01,166.86,23.776884]
[1729618512318,5.9893,166.97,166.86,23.776884]
[1729618512690,5.9895,166.96,166.86,23.776884]
[1729618516295,23.776884,167.0,166.86,23.776884]
[1729618516625,26.1047,166.95,166.83,16.6638]
[1729618516913,15.5884,166.96,166.84,17.2491294]
[1729618517924,20.0,167.0,166.87,23.776884]
[1729618518117,20.0,167.0,166.9,23.776884]
[1729618519516,5.9884,166.99,166.9,23.776884]
[1729618522120,20.0,167.0,166.89,6.3718]
[1729618522336,5.9891,166.97,166.89,6.3718]
[1729618522620,20.0,166.99,166.89,6.3718]
[1729618523325,5.9891,166.97,166.89,6.3718]
[1729618523522,5.9895,166.96,166.89,6.3718]
[1729618529026,5.9901,166.95,166.89,6.3718]
[1729618530221,5.9895,166.96,166.89,6.3718]
[1729618534333,43.776884,166.95,166.84,6.6406]
[1729618534505,5.9901,166.94,166.84,6.6406]
[1729618534827,15.461,166.96,166.84,6.6406]
[1729618534828,21.4507,166.96,166.84,23.8897294]
[1729618535617,21.4507,166.96,166.85,43.776884]
[1729618542433,21.4507,166.96,166.87,23.776884]
[1729618548446,5.9901,166.95,166.86,11.03335179]
[1729618548756,5.9901,166.95,166.84,6.6406]
[1729618548757,23.776884,166.95,166.84,6.6406]
[1729618549052,5.9913,166.91,166.84,6.6406]
[1729618549650,5.9913,166.91,166.8,2.21488883]
[1729618549957,5.9913,166.91,166.81,11.03335179]
[1729618550251,5.9913,166.91,166.82,23.776884]
[1729618551036,5.991,166.92,166.82,23.776884]
[1729618551949,5.991,166.92,166.83,11.03335179]
[1729618557463,38.751384,166.95,166.79,23.86804678]
[1729618557464,5.9915,166.91,166.79,23.86804678]
[1729618557643,5.9915,166.91,166.81,11.03335179]
[1729618557839,5.9915,166.91,166.82,20.0]
[1729618558646,5.9915,166.91,166.82,11.03335179]
[1729618560268,5.9909,166.92,166.82,11.03335179]
[1729618560572,38.751384,166.95,166.84,11.03335179]
[1729618561461,5.9908,166.93,166.83,23.776884]
[1729618563143,5.9909,166.92,166.83,23.776884]
[1729618566461,25.9898,166.95,166.86,11.03335179]
[1729618566767,5.9898,166.95,166.86,11.03335179]
[1729618567352,5.9901,166.94,166.86,11.03335179]
[1729618567655,15.461,166.96,166.87,23.776884]
[1729618567861,15.461,166.96,166.88,11.03335179]
[1729618568169,15.461,166.96,166.85,15.3035]
[1729618568372,5.9911,166.92,166.83,23.776884]
[1729618568669,14.9745,166.95,166.81,21.7734]
[1729618568966,20.0,166.93,166.81,32.80675179]
[1729618569165,5.9922,166.89,166.81,32.80675179]
[1729618569570,23.776884,166.92,166.81,32.80675179]
[1729618571479,5.9918,166.9,166.81,32.80675179]
[1729618572476,5.9919,166.89,166.81,21.7734]
[1729618572657,5.9916,166.91,166.81,32.80675179]
[1729618572974,5.9916,166.9,166.81,32.80675179]
[1729618574754,23.776884,166.92,166.81,32.80675179]
[1729618574966,5.9917,166.9,166.81,32.80675179]
[1729618575557,23.776884,166.92,166.81,21.7734]
[1729618575762,5.9929,166.87,166.78,0.625218]
[1729618575965,16.5426,166.89,166.78,0.625218]
[1729618576152,5.9928,166.87,166.78,0.625218]
[1729618576354,5.9924,166.88,166.78,0.625218]
[1729618576878,16.5426,166.89,166.78,0.625218]
[1729618577082,16.5426,166.89,166.79,11.03335179]
[1729618577373,5.9923,166.88,166.8,23.776884]
[1729618577570,16.5426,166.89,166.78,11.65856979]
[1729618577775,23.776884,166.88,166.78,11.65856979]
[1729618577953,5.9929,166.87,166.78,11.65856979]
[1729618578760,5.993,166.86,166.78,11.65856979]
[1729618579274,5.9923,166.88,166.78,11.65856979]
[1729618590185,5.9929,166.87,166.78,11.65856979]
[1729618591074,5.9923,166.88,166.78,11.65856979]
[1729618592188,5.993,166.87,166.78,11.65856979]
[1729618592385,5.9929,166.87,166.78,11.65856979]
[1729618592692,5.9929,166.87,166.78,0.625218]
[1729618592693,5.9948,166.81,166.78,0.625218]
[1729618592871,5.9955,166.79,166.78,0.625218]
[1729618593076,22.4503,166.79,166.78,0.625218]
[1729618593373,66.227184,166.79,166.78,0.625218]
[1729618593582,66.227184,166.79,166.65,6.2938]
[1729618593583,20.0,166.76,166.65,6.2938]
[1729618593785,20.0,166.76,166.61,15.862918]
[1729618593786,5.998,166.72,166.63,6.19194881]
[1729618595396,23.776884,166.73,166.61,6.887418]
[1729618595688,20.0,166.74,166.64,11.03335179]
[1729618595865,5.9978,166.73,166.64,11.03335179]
[1729618596293,5.9978,166.73,166.61,6.887418]
[1729618596587,5.9978,166.73,166.63,11.03335179]
[1729618598293,32.80808877,166.74,166.63,11.03335179]
[1729618598294,5.998,166.72,166.63,11.03335179]
[1729618598487,32.80808877,166.74,166.61,6.887418]
[1729618598488,32.80808877,166.74,166.62,20.0]
[1729618598701,5.9983,166.72,166.62,31.03335179]
[1729618598992,23.776884,166.73,166.62,31.03335179]
[1729618598993,5.9984,166.71,166.62,31.03335179]
[1729618601090,5.998,166.73,166.62,31.03335179]
[1729618601266,5.998,166.73,166.65,11.03335179]
[1729618601890,5.998,166.73,166.62,20.0]
[1729618601891,5.998,166.73,166.63,11.03335179]
[1729618603096,5.9981,166.72,166.63,11.03335179]
[1729618603994,5.9985,166.71,166.63,11.03335179]
[1729618604403,15.8559,166.71,166.61,6.887418]
[1729618604692,15.8559,166.71,166.61,0.625218]
[1729618604693,5.9996,166.68,166.61,0.625218]
[1729618608698,23.776884,166.69,166.61,0.625218]
[1729618608899,5.9998,166.67,166.61,0.625218]
[1729618610184,5.9996,166.68,166.61,0.625218]
[1729618610701,6.0006,166.65,166.61,0.625218]
[1729618611003,6.0015,166.63,166.61,0.625218]
[1729618611302,6.0016,166.62,166.61,0.625218]
[1729618611706,29.778484,166.62,166.61,0.625218]
[1729618611883,6.004,166.56,166.47,11.03335179]
[1729618612083,6.004,166.56,166.47,17.28296157]
[1729618612398,61.766884,166.61,166.47,17.28296157]
[1729618612604,6.0048,166.54,166.47,6.24960978]
[1729618612777,22.6249,166.56,166.47,6.24960978]
[1729618612982,23.776884,166.55,166.47,6.24960978]
[1729618613202,23.776884,166.55,166.45,11.03335179]
[1729618613501,23.776884,166.55,166.44,0.625218]
[1729618613804,6.0056,166.51,166.45,11.03335179]
[1729618613987,6.0048,166.54,166.45,11.03335179]
[1729618614183,22.6293,166.56,166.45,11.03335179]
[1729618614381,6.0042,166.55,166.45,11.03335179]
[1729618615009,22.6293,166.56,166.45,11.03335179]
[1729618615197,28.6334,166.56,166.45,11.03335179]
[1729618615389,22.6293,166.56,166.45,11.03335179]
[1729618615589,16.6209,166.56,166.47,11.03335179]
[1729618616109,6.0027,166.59,166.47,11.03335179]
[1729618616283,6.0027,166.59,166.49,11.03335179]
[1729618616994,6.0032,166.58,166.49,11.03335179]
[1729618617599,27.5758,166.6,166.49,11.03335179]
[1729618617787,21.5734,166.6,166.51,11.03335179]
[1729618618598,27.576,166.6,166.51,11.03335179]
[1729618618800,6.0027,166.59,166.49,33.38155179]
[1729618620696,43.776884,166.63,166.51,11.03335179]
[1729618620899,20.0,166.61,166.53,11.03335179]
[1729618621201,26.0021,166.61,166.53,11.03335179]
[1729618621990,27.6491,166.64,166.55,11.03335179]
[1729618622207,15.2836,166.64,166.55,11.03335179]
[1729618622405,15.2836,166.64,166.54,23.776884]
[1729618622712,21.2846,166.64,166.55,11.03335179]
[1729618624327,21.2846,166.64,166.54,23.776884]
[1729618625092,25.9999,166.67,166.54,23.776884]
[1729618625298,25.9999,166.67,166.56,29.929984]
[1729618625614,23.776884,166.66,166.56,6.1531]
[1729618625786,6.0012,166.64,166.56,6.1531]
[1729618626492,6.0023,166.61,166.52,20.0]
[1729618626701,6.0012,166.64,166.52,37.30234681]
[1729618627799,26.0003,166.66,166.55,23.776884]
[1729618628195,21.6333,166.68,166.55,23.776884]
[1729618628396,6.0002,166.66,166.56,15.8261]
[1729618628898,6.24568783,166.72,166.62,23.776884]
[1729618629210,15.7374,166.73,166.62,23.776884]
[1729618629521,15.7374,166.73,166.63,17.30234681]
[1729618631008,21.7351,166.73,166.63,17.30234681]
[1729618632819,12.80808877,166.74,166.64,15.7442]
[1729618632995,5.9966,166.76,166.66,6.2439]
[1729618635502,15.4145,166.77,166.67,41.07923081]
[1729618636104,5.996,166.78,166.67,41.07923081]
[1729618636531,16.0189,166.81,166.7,23.776884]
[1729618636728,16.0189,166.81,166.67,93.876884]
[1729618636729,16.0189,166.81,166.72,23.776884]
[1729618637110,12.366,166.84,166.73,20.0]
[1729618637707,12.366,166.84,166.73,37.30234681]
[1729618638531,16.585,166.85,166.75,23.776884]
[1729618638713,16.585,166.85,166.75,41.07923081]
[1729618641628,14.9797,166.9,166.76,20.0]
[1729618641810,5.9927,166.87,166.76,20.0]
[1729618644217,5.4927,166.87,166.76,20.0]
[1729618645235,43.776884,166.9,166.77,41.07923081]
[1729618645415,16.104,166.91,166.8,23.776884]
[1729618645609,16.104,166.91,166.82,6.4619]
[1729618645914,5.9907,166.93,166.82,6.4619]
[1729618646309,15.4064,166.95,166.82,6.4619]
[1729618646310,21.3962,166.95,166.83,41.07923081]
[1729618646927,5.9902,166.94,166.83,41.07923081]
[1729618648134,5.9893,166.97,166.86,23.776884]
[1729618648342,15.2261,166.99,166.86,23.776884]
[1729618649013,5.9894,166.96,166.86,23.776884]
[1729618650340,15.2261,166.99,166.86,23.776884]
[1729618650638,5.9894,166.96,166.87,16.2534]
[1729618651250,5.9903,166.94,166.87,16.2534]
[1729618651737,5.9903,166.94,166.84,20.0]
[1729618654648,43.776884,166.98,166.84,20.0]
[1729618654853,5.99,166.95,166.84,20.0]
[1729618655152,5.9902,166.94,166.84,20.0]
[1729618657156,5.9916,166.9,166.83,16.2534]
[1729618657350,43.776884,166.94,166.83,16.2534]
[1729618657550,5.9919,166.9,166.82,6.4619]
[1729618657758,21.4224,166.92,166.82,6.4619]
[1729618657952,5.9912,166.91,166.82,6.4619]
[1729618658146,21.4221,166.92,166.82,6.4619]
[1729618658452,5.9912,166.91,166.82,6.4619]
[1729618662459,5.992,166.89,166.82,6.4619]
[1729618663562,5.9923,166.88,166.8,20.0]
[1729618664059,5.9922,166.89,166.8,20.0]
[1729618665150,5.9922,166.89,166.79,32.61674681]
[1729618666442,5.9919,166.9,166.79,32.61674681]
[1729618666848,15.4312,166.92,166.79,32.61674681]
[1729618667069,5.9921,166.89,166.79,32.61674681]
[1729618668362,21.4223,166.92,166.81,17.30234681]
[1729618668559,5.9914,166.91,166.81,17.30234681]
[1729618670243,5.9914,166.91,166.83,11.03837016]
[1729618673148,21.4221,166.92,166.83,11.03837016]
[1729618673767,5.9913,166.91,166.83,11.03837016]
[1729618675143,15.4312,166.92,166.79,15.3144]
[1729618675342,5.9929,166.87,166.79,15.3144]
[1729618675543,5.9929,166.87,166.79,26.35277016]
[1729618677657,23.776884,166.91,166.78,6.4897]
[1729618677859,5.9944,166.83,166.75,32.74846772]
[1729618678049,5.9944,166.83,166.75,26.50587016]
[1729618678668,15.5003,166.85,166.77,11.03837016]
[1729618679053,15.5003,166.85,166.79,11.03837016]
[1729618680656,5.9933,166.86,166.79,11.03837016]
[1729618680858,5.9932,166.86,166.79,11.03837016]
[1729618682245,5.9932,166.86,166.76,41.03304242]
[1729618682452,5.9934,166.85,166.76,17.25615842]
[1729618683556,5.9933,166.86,166.76,17.25615842]
[1729618683862,5.9936,166.85,166.76,17.25615842]
[1729618684654,5.9932,166.86,166.76,17.25615842]
[1729618685468,23.776884,166.87,166.75,15.4675]
[1729618685780,5.9942,166.83,166.75,15.4675]
[1729618686162,5.994,166.84,166.75,15.4675]
[1729618686560,5.9953,166.8,166.73,6.243644]
[1729618686757,5.9969,166.76,166.67,1.04208443]
[1729618686967,43.776884,166.8,166.65,6.1426]
[1729618687273,5.9976,166.74,166.65,6.1426]
[1729618687952,61.866884,166.8,166.65,6.1426]
[1729618688275,5.9983,166.72,166.62,16.1695]
[1729618688777,5.9983,166.72,166.62,22.41594017]
[1729618688960,5.9983,166.72,166.62,16.1695]
[1729618690062,43.776884,166.77,166.62,16.1695]
[1729618690377,5.9977,166.73,166.63,23.776884]
[1729618691566,5.9962,166.77,166.66,17.25615842]
[1729618691758,5.9969,166.76,166.66,17.25615842]
[1729618692255,5.9969,166.76,166.65,23.776884]
[1729618692779,5.9973,166.75,166.64,37.25615842]
[1729618694656,5.9966,166.76,166.65,23.776884]
[1729618694972,22.1927,166.78,166.65,23.776884]
[1729618695188,5.9966,166.76,166.65,23.776884]
[1729618696175,22.1927,166.78,166.65,23.776884]
[1729618696380,5.9971,166.75,166.65,23.776884]
[1729618696887,23.776884,166.77,166.65,23.776884]
[1729618697058,23.776884,166.77,166.63,20.0]
[1729618697381,5.998,166.72,166.63,20.0]
[1729618697682,5.9983,166.72,166.63,20.0]
[1729618699383,5.9983,166.72,166.62,33.42565842]
[1729618699772,5.9979,166.73,166.63,23.776884]
[1729618700365,15.6296,166.78,166.63,23.776884]
[1729618700658,16.3757,166.82,166.72,23.776884]
[1729618700981,6.1294,166.86,166.75,23.776884]
[1729618701292,22.3685,166.87,166.75,23.776884]
[1729618701482,16.3757,166.87,166.75,23.776884]
[1729618702081,6.1294,166.9,166.79,17.25615842]
[1729618702578,16.3757,166.91,166.8,23.776884]
[1729618702770,16.3757,166.91,166.82,17.25615842]
[1729618706281,16.3757,166.91,166.81,6.3525]
[1729618706579,23.776884,166.9,166.77,21.657]
[1729618706978,5.993,166.87,166.77,21.657]
[1729618707368,5.992,166.89,166.77,21.657]
[1729618707579,5.9923,166.88,166.77,21.657]
[1729618708177,23.776884,166.9,166.77,21.657]
[1729618708178,23.776884,166.9,166.78,17.25615842]
[1729618708363,16.3757,166.91,166.82,17.25615842]
[1729618708559,22.3669,166.91,166.82,17.25615842]
[1729618708763,16.3163947,166.91,166.82,17.25615842]
[1729618709289,5.9894,166.96,166.86,17.25615842]
[1729618709483,5.9899,166.95,166.86,17.25615842]
[1729618709685,21.8254246,167.01,166.86,17.25615842]
[1729618709984,5.9889,166.98,166.88,17.25615842]
[1729618710376,5.9889,166.98,166.87,23.776884]
[1729618711169,23.776884,167.0,166.87,23.776884]
[1729618711369,5.9894,166.97,166.87,23.776884]
[1729618712272,5.9300947,166.97,166.87,23.776884]
[1729618713077,23.776884,166.98,166.86,47.57108425]
[1729618713281,5.9894,166.96,166.87,23.776884]
[1729618713593,5.9891,166.97,166.87,23.776884]
[1729618715590,5.9297947,166.97,166.88,20.0]
[1729618718595,5.9896,166.96,166.87,20.0]
[1729618718983,5.9302947,166.96,166.87,20.0]
[1729618720478,5.9901,166.95,166.87,20.0]
[1729618720692,5.9901,166.95,166.85,15.3224]
[1729618720693,23.776884,166.95,166.85,15.3224]
[1729618720902,23.776884,166.95,166.84,6.3346]
[1729618721193,5.9912,166.92,166.84,6.3346]
[1729618723775,5.9908,166.93,166.84,6.3346]
[1729618724400,5.9908,166.92,166.84,6.3346]
[1729618725885,5.9919,166.9,166.84,6.3346]
[1729618727515,5.9919,166.89,166.81,20.0]
[1729618728680,5.9908,166.92,166.81,20.0]
[1729618729606,5.9912,166.91,166.81,20.0]
[1729618730504,5.9912,166.91,166.82,17.24346298]
[1729618730693,5.9912,166.91,166.83,20.0]
[1729618732388,15.2821,166.93,166.83,20.0]
[1729618732589,5.9894,166.96,166.87,17.24346298]
[1729618733385,5.9894,166.96,166.88,20.0]
[1729618733593,15.486,166.97,166.88,20.0]
[1729618734205,5.9898,166.95,166.87,17.24346298]
[1729618734407,5.9898,166.95,166.86,20.0]
[1729618734603,5.9912,166.92,166.83,17.24346298]
[1729618734910,5.9912,166.92,166.84,20.0]
[1729618735803,23.776884,166.96,166.83,17.24346298]
[1729618736108,23.776884,166.96,166.8,22.3393]
[1729618736109,5.9919,166.9,166.8,22.3393]
[1729618736407,5.992,166.89,166.8,22.3393]
[1729618736912,5.9916,166.91,166.81,17.24346298]
[1729618737303,5.9916,166.91,166.82,20.0]
[1729618737489,5.992,166.89,166.82,20.0]
[1729618737894,5.992,166.89,166.81,20.0]
[1729618738489,5.992,166.89,166.8,22.3393]
[1729618739909,5.992,166.89,166.81,20.0]
[1729618742098,5.992,166.89,166.81,37.24346298]
[1729618742299,5.9907,166.93,166.84,20.0]
[1729618742702,23.776884,166.96,166.84,20.0]
[1729618742893,5.9909,166.92,166.84,20.0]
[1729618743094,30.4592,166.97,166.84,20.0]
[1729618743313,5.9901,166.95,166.84,20.0]
[1729618743496,33.476,166.97,166.84,20.0]
[1729618743815,5.9919,166.9,166.81,20.0]
[1729618744113,20.0,166.94,166.81,20.0]
[1729618744296,14.9745,166.95,166.81,20.0]
[1729618744297,5.9913,166.91,166.81,20.0]
[1729618745814,5.9913,166.91,166.83,20.0]
[1729618746313,5.991,166.92,166.83,20.0]
[1729618747019,43.776884,166.94,166.82,41.02034698]
[1729618747020,5.9916,166.9,166.82,17.24346298]
[1729618747313,5.9922,166.89,166.81,20.0]
[1729618747497,5.9922,166.89,166.8,22.3393]
[1729618749495,5.9922,166.89,166.8,39.58276298]
[1729618749912,15.4368,166.9,166.81,23.776884]
[1729618750098,15.4368,166.9,166.82,20.0]
[1729618750300,5.9914,166.91,166.82,37.24346298]
[1729618752120,5.9905,166.93,166.82,37.24346298]
[1729618752300,5.9911,166.92,166.82,37.24346298]
[1729618752501,5.9916,166.9,166.82,37.24346298]
[1729618753126,5.991,166.92,166.82,37.24346298]
[1729618753698,39.841484,166.94,166.84,17.24346298]
[1729618753699,16.0646,166.94,166.84,17.24346298]
[1729618753919,16.0646,166.94,166.85,20.0]
[1729618754796,5.9905,166.93,166.85,20.0]
[1729618755010,5.9912,166.91,166.83,20.0]
[1729618755516,5.9912,166.92,166.83,20.0]
[1729618758720,5.9922,166.89,166.81,20.0]
[1729618760906,5.9907,166.93,166.83,20.0]